bitfinex/quotes_SOLUSD_20260228
["timestamp","ask_amount","ask_price","bid_price","bid_amount"]
[1772287342077,19.02810759,81.13,81.09,19.02810759]
[1772287342390,19.02810759,81.13,81.09,23.19229247]
[1772287342588,19.02810759,81.1,81.064,12.3358139]
[1772287342891,3.69383402,81.126,81.059,12.33669302]
[1772287343074,19.02810759,81.09,81.046,12.33867186]
[1772287343273,19.02810759,81.08,81.046,16.50285674]
[1772287343480,43.15712893,81.099,81.051,4.16418488]
[1772287343481,19.02810759,81.09,81.051,4.16418488]
[1772287343795,19.02810759,81.08,81.051,4.16418488]
[1772287344287,19.02810759,81.07,81.034,4.16418488]
[1772287344709,19.02810759,81.07,81.023,0.249211]
[1772287344710,19.02810759,81.05,81.023,0.249211]
[1772287345200,19.02810759,81.04,81.005,4.16418488]
[1772287345371,19.02810759,81.04,80.991,12.3470509]
[1772287345372,19.02810759,81.06,81.021,4.16418488]
[1772287345879,19.02810759,81.06,81.023,4.16418488]
[1772287346083,19.02810759,81.06,81.02,19.02810759]
[1772287346295,19.02810759,81.05,81.011,4.16418488]
[1772287346611,3.69383402,81.076,81.021,4.16418488]
[1772287346894,19.02810759,81.06,80.992,4.16418488]
[1772287347068,12.33973765,81.039,81.01,19.02810759]
[1772287347272,12.33973765,81.039,81.003,4.16418488]
[1772287347795,19.02810759,81.02,80.991,16.51112202]
[1772287348294,19.02810759,81.02,80.991,4.16418488]
[1772287348695,19.02810759,81.02,80.99,0.2]
[1772287348899,19.02810759,81.03,80.99,4.36418488]
[1772287349074,30.84934414,81.039,81.001,4.16418488]
[1772287349271,30.84934414,81.039,81.0,19.02810759]
[1772287349272,12.33577992,81.065,81.02,19.02810759]
[1772287349475,12.33577992,81.065,81.03,19.02810759]
[1772287349692,43.17522974,81.065,81.03,19.02810759]
[1772287349870,19.02810759,81.05,81.01,19.02810759]
[1772287350070,19.02810759,81.04,81.0,19.02810759]
[1772287350392,19.02810759,81.02,80.99,0.2]
[1772287350589,252.88348851,81.065,80.99,0.2]
[1772287350590,19.02810759,81.03,80.99,0.2]
[1772287350893,19.02810759,81.04,81.001,4.16418488]
[1772287351193,19.02810759,81.04,81.0,19.02810759]
[1772287351194,43.18908179,81.039,81.0,19.02810759]
[1772287351377,12.33894736,81.045,81.01,19.02810759]
[1772287351574,80.15784929,81.09,81.03,19.02810759]
[1772287351775,19.02810759,81.04,80.992,4.16418488]
[1772287352071,61.47545917,81.085,80.99,0.2]
[1772287352072,19.02810759,81.02,80.99,0.2]
[1772287352273,19.02810759,81.01,80.99,0.2]
[1772287352684,19.02810759,81.0,80.965,4.16418488]
[1772287352991,19.02810759,81.01,80.97,19.02810759]
[1772287353202,19.02810759,80.98,80.932,4.16418488]
[1772287353409,19.02810759,80.97,80.936,12.35533881]
[1772287353687,19.02810759,80.98,80.952,4.16418488]
[1772287354093,19.02810759,80.98,80.94,19.02810759]
[1772287354390,92.58230566,81.009,80.961,4.16418488]
[1772287354391,43.20507597,81.009,80.961,4.16418488]
[1772287354591,19.02810759,81.0,80.961,4.16418488]
[1772287354768,19.02810759,80.99,80.951,16.83851433]
[1772287354969,19.02810759,81.0,80.952,4.16418488]
[1772287355175,19.02810759,80.98,80.951,4.48545806]
[1772287355576,19.02810759,80.97,80.951,4.48545806]
[1772287355786,19.02810759,80.97,80.951,1e-08]
[1772287355992,19.02810759,80.97,80.935,4.16418488]
[1772287356388,19.02810759,80.97,80.93,19.02810759]
[1772287356389,19.02810759,80.97,80.917,4.16418488]
[1772287356601,19.02810759,80.97,80.931,4.16418488]
[1772287356772,3.69383402,80.986,80.96,19.02810759]
[1772287356982,12.34348787,81.015,80.98,19.02810759]
[1772287357292,3.69383402,81.016,80.98,23.19229247]
[1772287357479,4.12838823,81.02,80.95,19.02810759]
[1772287357682,43.19875021,81.021,80.935,4.16418488]
[1772287357683,19.02810759,80.97,80.935,4.16418488]
[1772287357878,4.12838823,80.979,80.935,4.16418488]
[1772287358100,19.02810759,80.96,80.931,4.16418488]
[1772287358396,19.02810759,80.97,80.912,12.35910618]
[1772287358571,19.02810759,80.97,80.93,19.02810759]
[1772287358771,19.02810759,80.96,80.92,19.02810759]
[1772287358998,4.12838823,80.969,80.93,19.02810759]
[1772287359186,4.12838823,80.967,80.913,43.25633704]
[1772287359373,4.12838823,80.967,80.93,19.02810759]
[1772287359577,19.02810759,80.95,80.908,12.35964084]
[1772287359788,19.02810759,80.95,80.91,19.02810759]
[1772287359971,4.12838823,80.959,80.92,19.02810759]
[1772287360177,4.12838823,80.986,80.909,4.16418488]
[1772287360391,4.29480917,80.979,80.909,4.16418488]
[1772287361193,4.29480917,80.977,80.929,12.35651002]
[1772287361397,19.20501404,80.96,80.928,12.35652396]
[1772287361591,12.34903307,80.978,80.94,23.32853989]
[1772287361787,12.34903307,80.978,80.94,16.09732311]
[1772287362094,12.34903307,80.978,80.928,12.35652396]
[1772287362095,11.97379726,80.97,80.93,11.97379726]
[1772287362296,43.22161574,80.978,80.94,11.97379726]
[1772287362596,11.97379726,80.97,80.93,11.97379726]
[1772287362799,4.29480917,80.959,80.921,12.35773161]
[1772287362979,4.29480917,80.959,80.912,12.35910618]
[1772287363179,16.64681728,80.959,80.912,47.3803975]
[1772287363380,4.29480917,80.957,80.913,4.12352585]
[1772287363993,4.29480917,80.969,80.913,4.12352585]
[1772287364196,4.12198293,80.982,80.913,4.12352585]
[1772287364401,4.12198293,80.979,80.913,4.12352585]
[1772287364776,4.12198293,80.989,80.95,11.97379726]
[1772287364983,4.12198293,81.0,80.96,11.97379726]
[1772287365182,12.34552659,81.001,80.97,11.97379726]
[1772287365509,4.12198293,81.028,80.99,11.97379726]
[1772287366408,11.97379726,81.02,80.98,11.97379726]
[1772287366899,4.12198293,81.009,80.97,11.97379726]
[1772287367083,4.12198293,81.024,80.98,11.97379726]
[1772287367282,12.34430742,81.009,80.972,12.34994813]
[1772287367481,11.96243828,81.01,80.972,12.34994813]
[1772287367686,23.3153906,81.0,80.96,19.19340767]
[1772287367882,4.12198293,81.0,80.97,19.19340767]
[1772287368092,19.19340767,80.99,80.953,12.35275454]
[1772287368389,4.12198293,80.989,80.96,19.19340767]
[1772287368591,4.12198293,80.989,80.953,43.23487132]
[1772287368899,4.12198293,80.989,80.929,49.42564499]
[1772287368900,4.12198293,81.003,80.927,4.07414233]
[1772287369097,19.19340767,80.97,80.93,23.26755]
[1772287369300,16.47092798,80.979,80.94,19.19340767]
[1772287369503,19.19340767,80.97,80.93,4.07414233]
[1772287369800,4.12198293,80.979,80.95,19.19340767]
[1772287369987,12.34735581,80.989,80.96,19.19340767]
[1772287370382,4.12198293,80.988,80.942,4.07414233]
[1772287370608,4.12198293,80.988,80.93,47.3212545]
[1772287370902,4.12198293,80.988,80.95,19.19340767]
[1772287371199,30.86443159,81.0,80.943,4.07414233]
[1772287371200,12.34583143,80.999,80.961,12.35162609]
[1772287371398,4.12198293,80.998,80.961,12.35162609]
[1772287371600,4.12198293,80.998,80.96,19.19340767]
[1772287372182,4.12198293,80.998,80.929,4.07414233]
[1772287372393,19.19340767,80.98,80.94,19.19340767]
[1772287372684,4.12198293,80.979,80.94,19.19340767]
[1772287372889,4.12198293,80.969,80.93,19.19340767]
[1772287373409,12.35055824,80.968,80.931,12.35620466]
[1772287373797,4.12198293,80.967,80.907,30.89948208]
[1772287373998,4.12198293,80.967,80.921,4.07414233]
[1772287374185,4.12198293,80.967,80.93,19.19340767]
[1772287374694,19.19340767,80.96,80.921,4.07414233]
[1772287374999,4.12198293,80.959,80.909,4.07414233]
[1772287375203,43.22695385,80.968,80.909,4.07414233]
[1772287375204,12.35055824,80.968,80.909,4.07414233]
[1772287375412,19.19340767,80.95,80.911,4.07414233]
[1772287376009,4.12198293,80.949,80.91,19.19340767]
[1772287376805,4.12198293,80.939,80.9,12.36093943]
[1772287377015,4.12198293,80.939,80.91,19.19340767]
[1772287377216,4.12198293,80.939,80.9,43.263288]
[1772287377398,12.35513603,80.938,80.903,12.36034803]
[1772287377708,43.2429761,80.938,80.9,19.19340767]
[1772287377892,4.12198293,80.937,80.901,12.36078664]
[1772287378206,43.2429761,80.938,80.9,19.19340767]
[1772287378416,19.19340767,80.93,80.895,4.07414233]
[1772287378589,19.19340767,80.93,80.9,19.19340767]
[1772287378782,43.2429761,80.938,80.882,4.07414233]
[1772287378783,19.19340767,80.92,80.882,4.07414233]
[1772287378985,43.2429761,80.938,80.882,4.07414233]
[1772287378986,4.12198293,80.937,80.882,4.07414233]
[1772287379187,4.12198293,80.919,80.88,19.19340767]
[1772287379406,12.35818977,80.918,80.881,12.36384317]
[1772287379605,4.12198293,80.909,80.871,12.36537201]
[1772287379907,4.12198293,80.909,80.87,19.23292786]
[1772287380087,4.12198293,80.909,80.88,19.23292786]
[1772287380493,4.12198293,80.909,80.87,19.23292786]
[1772287380792,4.12198293,80.917,80.87,4.07414233]
[1772287381097,49.41520408,80.947,80.869,43.27974298]
[1772287381098,4.12198293,80.929,80.884,4.07414233]
[1772287381295,4.12198293,80.919,80.87,4.07414233]
[1772287381510,4.12198293,80.889,80.845,55.62]
[1772287381686,4.12198293,80.879,80.836,12.37067521]
[1772287382014,302.77564938,80.918,80.831,4.07414233]
[1772287382015,19.23292786,80.87,80.831,4.07414233]
[1772287382211,23.35491079,80.88,80.833,4.07414233]
[1772287382505,302.77564938,80.918,80.82,1e-08]
[1772287382506,19.23292786,80.84,80.82,1e-08]
[1772287382709,3.69383402,80.827,80.8,233.7598342]
[1772287382917,19.23292786,80.81,80.8,81.86931214]
[1772287383101,19.23292786,80.81,80.775,4.07414233]
[1772287383294,4.0807631,80.815,80.761,4.07414233]
[1772287383620,599.3722039,80.918,80.746,4.07414233]
[1772287383621,12.37792273,80.789,80.746,4.07414233]
[1772287383920,19.23292786,80.78,80.751,4.07414233]
[1772287384218,19.23292786,80.78,80.709,49.56030523]
[1772287384219,4.0807631,80.775,80.723,4.07414233]
[1772287384413,3.69383402,80.786,80.707,4.07414233]
[1772287384414,19.23292786,80.74,80.707,4.07414233]
[1772287384714,19.23292786,80.75,80.711,4.07414233]
[1772287384904,19.23292786,80.78,80.741,4.07414233]
[1772287385107,4.0807631,80.785,80.728,4.07414233]
[1772287385414,12.38558812,80.739,80.701,4.07414233]
[1772287385588,19.23292786,80.73,80.701,4.07414233]
[1772287385919,19.23292786,80.73,80.7,500.249211]
[1772287385920,19.23292786,80.71,80.7,356.10645849]
[1772287386098,19.23292786,80.71,80.7,235.38173094]
[1772287386290,19.23292786,80.71,80.7,1e-08]
[1772287386487,49.54190459,80.74,80.7,1e-08]
[1772287386488,12.38374756,80.751,80.701,4.07414233]
[1772287386810,1.75252723,80.75,80.72,19.23292786]
[1772287387194,19.23292786,80.73,80.7,1e-08]
[1772287387400,1.75252723,80.75,80.71,19.23292786]
[1772287387594,1.75252723,80.75,80.721,4.07414233]
[1772287387803,12.38321306,80.755,80.721,4.07414233]
[1772287388001,31.6138067,80.77,80.731,4.07414233]
[1772287388212,12.37838239,80.786,80.741,4.07414233]
[1772287388507,12.37838239,80.786,80.75,19.23292786]
[1772287388508,3.9995559,80.785,80.75,19.23292786]
[1772287388709,12.37654397,80.798,80.751,4.07414233]
[1772287388914,12.37654397,80.798,80.77,19.23292786]
[1772287389092,12.37654397,80.798,80.761,4.07414233]
[1772287389293,43.3179039,80.798,80.761,4.07414233]
[1772287389502,12.38098775,80.769,80.73,165.7]
[1772287389713,12.38098775,80.769,80.713,4.07414233]
[1772287389714,19.23292786,80.75,80.713,4.07414233]
[1772287389894,43.33345713,80.769,80.713,4.07414233]
[1772287389895,19.23292786,80.74,80.713,4.07414233]
[1772287390299,19.23292786,80.72,80.7,1e-08]
[1772287390619,3.69383402,80.763,80.7,19.23292786]
[1772287390817,19.23292786,80.74,80.7,19.23292786]
[1772287390994,19.23292786,80.73,80.679,30.98674726]
[1772287391194,19.23292786,80.73,80.69,19.23292786]
[1772287391391,19.23292786,80.72,80.68,12.39464551]
[1772287391590,3.69383402,80.753,80.633,49.60713945]
[1772287391591,19.23292786,80.71,80.67,19.23292786]
[1772287392017,19.23292786,80.71,80.64,192.21230157]
[1772287392218,19.23292786,80.7,80.64,142.60912697]
[1772287392515,4.28189083,80.712,80.651,4.43433881]
[1772287392725,19.23292786,80.67,80.641,4.43433881]
[1772287393009,19.23292786,80.68,80.651,4.43433881]
[1772287393414,19.23292786,80.67,80.64,12.40079365]
[1772287393623,19.23292786,80.67,80.635,12.40152869]
[1772287393797,12.39633564,80.669,80.636,4.43433881]
[1772287394117,4.28189083,80.684,80.631,4.43433881]
[1772287394317,19.23292786,80.66,80.631,4.43433881]
[1772287394631,19.23292786,80.68,80.641,4.43433881]
[1772287395113,19.23292786,80.68,80.62,43.61349007]
[1772287395114,4.28189083,80.695,80.66,19.23292786]
[1772287395294,19.23292786,80.67,80.634,4.43433881]
[1772287395490,12.39633564,80.669,80.635,12.40156259]
[1772287395716,19.23292786,80.66,80.634,4.43433881]
[1772287395916,19.23292786,80.67,80.63,19.23292786]
[1772287396195,19.23292786,80.67,80.631,4.43433881]
[1772287396613,4.28189083,80.688,80.641,4.43433881]
[1772287396795,19.23292786,80.69,80.65,23.66726667]
[1772287397001,19.23292786,80.69,80.651,4.43433881]
[1772287397442,19.23292786,80.71,80.671,4.43433881]
[1772287397610,19.23292786,80.71,80.672,12.39587465]
[1772287397611,12.39075147,80.706,80.672,12.39587465]
[1772287397800,30.97135757,80.72,80.68,23.66726667]
[1772287397801,12.38865694,80.719,80.68,23.66726667]
[1772287398005,12.38865694,80.719,80.672,12.39587465]
[1772287398006,12.38865694,80.719,80.691,4.43433881]
[1772287398212,12.38742923,80.727,80.701,4.43433881]
[1772287398407,1.75274467,80.728,80.701,4.43433881]
[1772287398615,12.38557604,80.74,80.71,19.23292786]
[1772287398918,4.28189083,80.76,80.711,4.43433881]
[1772287399218,19.23292786,80.73,80.698,4.43433881]
[1772287399418,19.23292786,80.73,80.673,4.43433881]
[1772287399619,12.38252083,80.759,80.723,4.43433881]
[1772287399819,19.23292786,80.75,80.723,4.43433881]
[1772287400006,19.23292786,80.74,80.7,19.23292786]
[1772287400205,19.23292786,80.74,80.653,49.59468432]
[1772287400206,19.23292786,80.71,80.674,4.43433881]
[1772287400515,4.28189083,80.734,80.674,4.43433881]
[1772287400516,19.23292786,80.72,80.681,4.43433881]
[1772287400718,19.23292786,80.71,80.671,4.43433881]
[1772287400897,19.23292786,80.72,80.681,4.43433881]
[1772287401099,19.23292786,80.73,80.69,19.23292786]
[1772287401296,19.23292786,80.73,80.635,303.83828358]
[1772287401297,19.23292786,80.74,80.701,4.43433881]
[1772287401520,19.23292786,80.75,80.711,4.43433881]
[1772287401821,19.23292786,80.74,80.7,19.23292786]
[1772287402034,19.23292786,80.72,80.672,12.39587465]
[1772287402203,23.51481869,80.73,80.69,19.23292786]
[1772287402525,4.28189083,80.73,80.7,19.23292786]
[1772287402727,12.38405429,80.749,80.72,19.23292786]
[1772287402916,12.38405429,80.749,80.672,254.11543037]
[1772287402917,43.34419001,80.749,80.7,19.23292786]
[1772287403104,43.34419001,80.749,80.672,254.11543037]
[1772287403105,4.28189083,80.748,80.672,254.11543037]
[1772287403304,4.28189083,80.748,80.71,19.23292786]
[1772287403512,4.28189083,80.748,80.672,254.11543037]
[1772287403513,19.23292786,80.73,80.672,43.38556128]
[1772287403712,19.23292786,80.73,80.7,19.23292786]
[1772287403917,12.38646793,80.734,80.7,19.23292786]
[1772287404223,19.23292786,80.74,80.691,43.37534544]
[1772287404224,35.90035297,80.74,80.701,4.43433881]
[1772287404527,16.66742511,80.74,80.71,19.23292786]
[1772287404948,16.66742511,80.74,80.701,4.43433881]
[1772287404949,12.38553428,80.74,80.701,4.43433881]
[1772287405124,4.28189083,80.739,80.7,19.23292786]
[1772287405502,4.28189083,80.739,80.691,4.43433881]
[1772287405503,19.23292786,80.73,80.691,4.43433881]
[1772287405706,12.38712234,80.729,80.691,4.43433881]
[1772287406128,43.3549282,80.729,80.691,4.43433881]
[1772287406441,4.28189083,80.719,80.68,19.23292786]
[1772287406933,19.23292786,80.7,80.664,4.43433881]
[1772287407431,19.23292786,80.68,80.64,19.23292786]
[1772287407604,19.23292786,80.68,80.641,4.43433881]
[1772287407803,12.39479914,80.679,80.641,4.43433881]
[1772287408005,19.23292786,80.66,80.628,4.43433881]
[1772287408422,19.23292786,80.68,80.641,4.43433881]
[1772287408708,12.39158598,80.7,80.67,19.23292786]
[1772287408912,4.28189083,80.706,80.68,19.23292786]
[1772287408913,12.39098128,80.704,80.68,19.23292786]
[1772287409131,12.39098128,80.704,80.67,19.23292786]
[1772287409433,12.39098128,80.704,80.631,1.24021778]
[1772287409434,14.13971836,80.733,80.691,4.43433881]
[1772287409610,19.23292786,80.73,80.7,19.23292786]
[1772287409807,12.38712234,80.729,80.7,19.23292786]
[1772287410307,12.38712234,80.729,80.662,99.1788869]
[1772287410308,12.38666204,80.732,80.72,19.23292786]
[1772287410513,12.38666204,80.732,80.71,19.23292786]
[1772287410709,19.23292786,80.73,80.69,19.23292786]
[1772287411011,19.23292786,80.73,80.691,4.43433881]
[1772287411533,1.75320975,80.733,80.72,19.23292786]
[1772287411937,1.75320975,80.733,80.679,61.48649422]
[1772287411938,12.38037463,80.773,80.74,19.23292786]
[1772287412237,7.80626792,80.785,80.76,19.23292786]
[1772287412475,3.30626792,80.785,80.77,19.23292786]
[1772287412741,4.5,80.827,80.77,19.23292786]
[1772287412925,4.5,80.819,80.78,19.23292786]
[1772287413244,4.5,80.819,80.734,3.69383402]
[1772287413532,4.5,80.817,80.721,12.38834999]
[1772287413738,241.25004637,80.829,80.721,12.38834999]
[1772287413739,19.23292786,80.76,80.721,12.38834999]
[1772287414039,12.38252083,80.759,80.73,19.23292786]
[1772287414332,4.5,80.769,80.73,19.23292786]
[1772287414333,12.38114104,80.768,80.73,19.23292786]
[1772287414537,19.23292786,80.76,80.721,12.38834999]
[1772287414731,19.23292786,80.76,80.72,19.23292786]
[1772287414732,4.5,80.759,80.72,19.23292786]
[1772287414936,4.5,80.759,80.73,19.23292786]
[1772287415536,4.5,80.759,80.72,19.23292786]
[1772287415929,3.69383402,80.778,80.71,12.38993911]
[1772287415930,19.23292786,80.75,80.71,19.23292786]
[1772287416133,4.5,80.749,80.71,19.23292786]
[1772287416330,19.23292786,80.74,80.7,19.23292786]
[1772287416640,4.5,80.739,80.7,19.23292786]
[1772287416945,12.38267416,80.758,80.73,19.23292786]
[1772287417246,43.33345713,80.769,80.74,19.23292786]
[1772287417449,43.33345713,80.769,80.708,99.18620553]
[1772287417450,12.38098775,80.769,80.75,19.23292786]
[1772287417749,38.73885286,80.779,80.75,19.23292786]
[1772287417750,43.32862907,80.778,80.75,19.23292786]
[1772287417943,12.3796083,80.778,80.75,19.23292786]
[1772287418146,43.32862907,80.778,80.75,19.23292786]
[1772287418330,4.5,80.777,80.712,51.18450318]
[1772287418641,4.5,80.769,80.73,19.23292786]
[1772287418838,30.94902077,80.778,80.74,19.23292786]
[1772287419241,19.23292786,80.77,80.74,19.23292786]
[1772287419551,19.23292786,80.76,80.72,19.23292786]
[1772287420040,30.94902077,80.778,80.731,12.38681547]
[1772287420041,12.38098775,80.769,80.731,12.38681547]
[1772287420239,12.38098775,80.769,80.74,19.23292786]
[1772287420739,43.33345713,80.769,80.74,19.23292786]
[1772287420941,43.33345713,80.769,80.731,12.38681547]
[1772287420942,4.30274728,80.768,80.731,12.38681547]
[1772287421321,4.30274728,80.759,80.72,19.23292786]
[1772287421525,19.23292786,80.76,80.72,19.23292786]
[1772287422027,12.38252083,80.759,80.73,19.23292786]
[1772287422634,12.38252083,80.759,80.722,4.07995313]
[1772287422635,4.30274728,80.778,80.74,19.23292786]
[1772287422836,49.50978144,80.793,80.722,4.07995313]
[1772287422837,19.23292786,80.76,80.73,19.23292786]
[1772287423042,4.30274728,80.759,80.72,19.23292786]
[1772287423444,43.32916547,80.777,80.712,4.28737159]
[1772287423637,19.23292786,80.76,80.711,4.28737159]
[1772287423838,43.33345713,80.769,80.73,19.23292786]
[1772287424041,43.33345713,80.769,80.741,4.28737159]
[1772287424042,12.38098775,80.769,80.741,4.28737159]
[1772287424421,12.3796083,80.778,80.75,19.23292786]
[1772287424824,19.23292786,80.79,80.76,19.23292786]
[1772287425049,3.29016076,80.779,80.77,19.23292786]
[1772287425222,49.68046482,80.84,80.735,4.28737159]
[1772287425223,61.87429617,80.809,80.735,4.28737159]
[1772287425423,4.47290985,80.789,80.75,19.23292786]
[1772287425628,4.47290985,80.789,80.76,19.23292786]
[1772287425838,12.37807595,80.788,80.76,31.61528976]
[1772287426128,12.37807595,80.788,80.76,19.23292786]
[1772287426342,4.47290985,80.802,80.78,19.23292786]
[1772287426551,16.06735524,80.818,80.79,19.23292786]
[1772287426760,12.37208706,80.828,80.8,19.23292786]
[1772287427047,12.37208706,80.828,80.748,253.87625697]
[1772287427048,4.47290985,80.809,80.77,19.23292786]
[1772287427359,4.47290985,80.779,80.732,4.28737159]
[1772287427527,19.23292786,80.77,80.73,23.52029945]
[1772287427729,19.23292786,80.77,80.731,4.28737159]
[1772287427950,19.23292786,80.79,80.75,23.52029945]
[1772287428158,12.37730991,80.793,80.74,19.23292786]
[1772287428159,19.23292786,80.78,80.74,19.23292786]
[1772287428450,4.47290985,80.814,80.771,4.28737159]
[1772287428658,4.47290985,80.814,80.78,19.23292786]
[1772287428826,4.47290985,80.809,80.772,51.18450318]
[1772287429027,19.23292786,80.8,80.772,51.18450318]
[1772287429225,4.47290985,80.809,80.772,51.18450318]
[1772287429429,19.23292786,80.83,80.79,15.51892786]
[1772287429633,19.23292786,80.83,80.781,4.28737159]
[1772287429634,4.47290985,80.835,80.8,19.23292786]
[1772287430056,23.70583771,80.82,80.791,102.3]
[1772287430351,4.47290985,80.832,80.8,19.23292786]
[1772287430746,4.47290985,80.829,80.792,102.3]
[1772287430948,43.29861196,80.834,80.8,19.23292786]
[1772287431147,12.37103199,80.834,80.8,19.23292786]
[1772287431365,4.47290985,80.837,80.8,19.23292786]
[1772287431593,4.47290985,80.809,80.753,12.38344086]
[1772287431885,19.23292786,80.8,80.76,19.23292786]
[1772287432068,43.31736778,80.799,80.761,12.38221418]
[1772287432261,12.37639079,80.799,80.77,19.23292786]
[1772287432474,43.31736778,80.799,80.761,16.66958577]
[1772287432661,43.31736778,80.799,80.761,4.28737159]
[1772287432856,4.47290985,80.798,80.76,19.23292786]
[1772287433286,4.47290985,80.769,80.721,4.28737159]
[1772287433489,4.47290985,80.769,80.73,19.23292786]
[1772287433792,19.23292786,80.77,80.73,23.52029945]
[1772287433975,12.38098775,80.769,80.731,47.64122574]
[1772287434478,12.38098775,80.769,80.731,16.67418706]
[1772287434868,12.38098775,80.769,80.731,12.38681547]
[1772287435087,19.23292786,80.75,80.712,12.38973139]
[1772287435690,4.47290985,80.759,80.72,19.23292786]
[1772287436106,4.47290985,80.757,80.72,19.23292786]
[1772287436285,12.38193001,80.763,80.73,19.23292786]
[1772287436585,19.23292786,80.78,80.74,19.23292786]
[1772287436785,12.37924938,80.781,80.75,19.23292786]
[1772287436989,4.47290985,80.759,80.678,4.28737159]
[1772287437205,19.23292786,80.72,80.681,4.28737159]
[1772287437420,19.23292786,80.74,80.701,4.28737159]
[1772287437787,19.23292786,80.73,80.69,19.23292786]
[1772287437997,19.23292786,80.71,80.68,19.23292786]
[1772287438305,4.47290985,80.719,80.68,19.23292786]
[1772287438496,19.23292786,80.72,80.68,19.23292786]
[1772287438886,23.70583771,80.71,80.671,12.39602831]
[1772287439085,4.47290985,80.71,80.68,19.23292786]
[1772287439286,16.86061334,80.726,80.69,19.32889564]
[1772287439786,4.47290985,80.725,80.69,19.32889564]
[1772287439992,4.47290985,80.725,80.681,4.28737159]
[1772287440199,23.80180549,80.72,80.682,12.39433826]
[1772287441005,4.47290985,80.699,80.66,19.32889564]
[1772287441302,92.90917197,80.724,80.67,19.32889564]
[1772287441303,23.80180549,80.71,80.67,19.32889564]
[1772287441495,43.35761358,80.724,80.648,4.28737159]
[1772287441496,19.32889564,80.69,80.648,4.28737159]
[1772287441698,4.47290985,80.699,80.66,19.32889564]
[1772287441897,19.32889564,80.71,80.67,19.32889564]
[1772287442100,36.19184389,80.71,80.671,12.39602831]
[1772287442299,12.38742923,80.727,80.69,19.32889564]
[1772287442516,4.47290985,80.719,80.68,19.32889564]
[1772287442717,4.47290985,80.719,80.658,4.28737159]
[1772287442921,19.32889564,80.68,80.641,16.68801146]
[1772287443134,4.47290985,80.689,80.641,4.28737159]
[1772287443420,4.47290985,80.67,80.64,0.1]
[1772287443620,19.32889564,80.66,80.64,0.1]
[1772287444119,12.39787252,80.659,80.64,0.1]
[1772287444318,12.39633564,80.669,80.64,0.1]
[1772287444519,12.39555483,80.675,80.64,19.42889564]
[1772287444819,19.32889564,80.67,80.64,0.1]
[1772287445021,19.32889564,80.65,80.62,1e-08]
[1772287445233,4.47290985,80.637,80.59,19.32889564]
[1772287445521,19.32889564,80.63,80.59,19.32889564]
[1772287445724,19.32889564,80.62,80.6,236.174693]
[1772287446022,19.32889564,80.62,80.6,163.36604314]
[1772287446215,12.40402386,80.619,80.6,163.36604314]
[1772287446401,12.40402386,80.619,80.6,100.93142082]
[1772287446602,49.60373169,80.64,80.6,100.93142082]
[1772287446603,4.47290985,80.639,80.6,120.26031646]
[1772287446919,4.47290985,80.629,80.6,100.93142082]
[1772287447228,4.47290985,80.629,80.6,120.26031646]
[1772287447404,4.47290985,80.629,80.6,100.93142082]
[1772287447723,12.39970464,80.648,80.61,19.32889564]
[1772287448023,4.47290985,80.647,80.61,19.32889564]
[1772287448195,16.87278089,80.646,80.601,16.69416555]
[1772287448401,4.47290985,80.645,80.601,4.28737159]
[1772287448599,4.47290985,80.645,80.61,19.32889564]
[1772287448808,4.47290985,80.645,80.603,4.28737159]
[1772287449026,49.58247721,80.674,80.603,4.28737159]
[1772287449027,12.39912495,80.651,80.62,19.32889564]
[1772287449326,16.8711466,80.657,80.603,4.28737159]
[1772287449618,4.47290985,80.649,80.603,4.28737159]
[1772287449821,19.35523006,80.64,80.6,100.93142082]
[1772287449997,4.47290985,80.629,80.6,113.33829612]
[1772287450202,16.87554913,80.628,80.6,100.93142082]
[1772287450414,12.40263928,80.628,80.6,100.93142082]
[1772287450717,12.40105333,80.639,80.61,12.07463109]
[1772287450916,12.39965084,80.648,80.62,12.07463109]
[1772287451117,12.39965084,80.648,80.611,61.5]
[1772287451496,12.3975966,80.661,80.63,12.07463109]
[1772287451700,16.85698544,80.661,80.631,61.5]
[1772287452014,4.45938884,80.689,80.65,12.07463109]
[1772287452320,4.45938884,80.687,80.65,12.07463109]
[1772287453021,12.39341661,80.688,80.66,12.07463109]
[1772287453219,43.37695815,80.688,80.65,12.07463109]
[1772287453521,43.3716214,80.698,80.66,12.07463109]
[1772287453747,12.39188083,80.698,80.67,12.07463109]
[1772287454229,12.39001429,80.711,80.671,12.39602831]
[1772287454427,12.39001429,80.711,80.68,12.07463109]
[1772287454723,12.38881042,80.718,80.69,12.07463109]
[1772287455104,12.3875129,80.727,80.7,12.07463109]
[1772287455300,4.45938884,80.726,80.7,12.07463109]
[1772287455507,12.3875129,80.727,80.64,24.47534597]
[1772287455508,4.45938884,80.709,80.64,24.47534597]
[1772287455714,12.07463109,80.69,80.651,4.30274728]
[1772287456105,4.45938884,80.697,80.66,12.07463109]
[1772287456299,4.45938884,80.697,80.657,12.39815781]
[1772287456300,12.07463109,80.69,80.657,12.39815781]
[1772287456625,12.39019192,80.709,80.67,12.07463109]
[1772287456926,12.07463109,80.72,80.69,12.07463109]
[1772287457226,4.45938884,80.734,80.7,12.07463109]